lending/lending_fUSD_20250130
["ID","MTS","AMOUNT","RATE_DAILY","PERIOD"]
[350982161,1738265480133,-1265.34147058,0.00018409,2]
[350982165,1738266509166,176.56,0.00010137,2]
[350982187,1738266612450,323.26,0.000155,30]
[350982197,1738266637533,-337.09,0.00015859,2]
[350982198,1738266637543,-181.06,0.00017207,2]
[350982199,1738266637552,-282.84,0.00017445,2]
[350982200,1738266637561,-155.53,0.00017499,2]
[350982201,1738266637571,-43.06139994,0.00017567,2]
[350982220,1738266639716,-956.93860006,0.00017567,2]
[350982221,1738266639726,-513.42,0.00017593,2]
[350982222,1738266639736,-980.2342445,0.00017732,2]
[350982223,1738266639768,-519.7657555,0.00017732,2]
[350982224,1738266639778,-150.0,0.00017753,2]
[350982225,1738266639788,-500.0,0.00017777,2]
[350982226,1738266639798,-1107.28,0.00017792,2]
[350982227,1738266639808,-165.29,0.00017807,2]
[350982228,1738266639817,-173.58,0.00017824,2]
[350982229,1738266639827,-165.29,0.00017896,2]
[350982230,1738266639837,-300.0,0.00017899,2]
[350982231,1738266639848,-4831.24821109,0.000179,2]
[350982232,1738266639859,-151.51498752,0.00017938,2]
[350982233,1738266639869,-406.58,0.00018,30]
[350982234,1738266639879,-126997.0,0.00018,7]
[350982235,1738266639889,-475.099,0.00018,2]
[350982236,1738266639899,-90906.7297652,0.00018,2]
[350982237,1738266639914,-4831.24821096,0.00018038,2]
[350982238,1738266639925,-175.95,0.00018082,2]
[350982239,1738266639934,-151.51498751,0.00018115,2]
[350982240,1738266639945,-337.09,0.00018123,2]
[350982241,1738266639955,-4831.24821096,0.00018176,2]
[350982242,1738266639965,-150.0,0.00018254,2]
[350982243,1738266639976,-151.51498751,0.00018292,2]
[350982244,1738266639986,-4831.24821096,0.00018314,2]
[350982245,1738266639996,-171.03,0.00018407,2]
[350982246,1738266640006,-4831.24821096,0.00018452,2]
[350982247,1738266640016,-151.51498751,0.00018468,2]
[350982248,1738266640025,-4831.24821096,0.0001859,2]
[350982249,1738266640036,-151.51498751,0.00018645,2]
[350982250,1738266640047,-4831.24821096,0.00018728,2]
[350982251,1738266640057,-175.95,0.00018751,2]
[350982252,1738266640068,-151.51498751,0.00018822,2]
[350982253,1738266640078,-4831.24821096,0.00018866,2]
[350982254,1738266640088,-1000.0,0.00018904,9]
[350982255,1738266640098,-151.51498751,0.00018999,2]
[350982256,1738266640108,-40000.0,0.00019,2]
[350982257,1738266640119,-1016.0,0.00019,2]
[350982258,1738266640129,-1000.0,0.00019,2]
[350982260,1738266640139,-1000.0,0.00019,4]
[350982262,1738266640149,-1001.0,0.00019,2]
[350982264,1738266640159,-1000.0,0.00019,2]
[350982266,1738266640170,-1000.0,0.00019,3]
[350982268,1738266640180,-4831.24821096,0.00019003,2]
[350982270,1738266640189,-17468.53778015,0.00019064,2]
[350982272,1738266640199,-6911.8111,0.00019078,2]
[350982274,1738266640209,-193.870411,0.00019078,2]
[350982276,1738266640219,-152.17950909,0.00019078,2]
[350982278,1738266640229,-357.61653796,0.00019078,2]
[350982280,1738266640238,-23665.0479,0.00019078,2]
[350982282,1738266640249,-17468.53778008,0.00019096,2]
[350982285,1738266640259,-17468.53778008,0.00019128,2]
[350982286,1738266640269,-4831.24821096,0.00019141,2]
[350982289,1738266640279,-357.61653794,0.00019147,2]
[350982291,1738266640289,-17468.53778008,0.0001916,2]
[350982293,1738266640300,-500.0,0.00019164,2]
[350982295,1738266640309,-700.0,0.00019164,2]
[350982297,1738266640319,-151.51498751,0.00019175,2]
[350982299,1738266640330,-606.0,0.00019178,2]
[350982301,1738266640343,-500.0,0.00019178,2]
[350982303,1738266640353,-500.0,0.00019178,2]
[350982305,1738266640364,-1686.393964,0.00019178,2]
[350982307,1738266640375,-500.0,0.00019178,2]
[350982309,1738266640384,-151.365662,0.00019178,2]
[350982311,1738266640394,-151.663089,0.00019178,2]
[350982313,1738266640404,-500.0,0.00019178,2]
[350982316,1738266640420,-500.0,0.00019178,2]
[350982318,1738266640430,-500.0,0.00019178,2]
[350982320,1738266640440,-500.0,0.00019178,2]
[350982322,1738266640450,-500.0,0.00019178,2]
[350982324,1738266640460,-500.0,0.00019178,2]
[350982326,1738266640471,-500.0,0.00019178,2]
[350982328,1738266640480,-500.0,0.00019178,2]
[350982330,1738266640490,-500.0,0.00019178,2]
[350982332,1738266640500,-500.0,0.00019178,2]
[350982334,1738266640509,-1518.488196,0.00019178,2]
[350982337,1738266640520,-500.0,0.00019178,2]
[350982339,1738266640530,-500.0,0.00019178,2]
[350982341,1738266640540,-500.0,0.00019178,2]
[350982343,1738266640550,-500.0,0.00019178,2]
[350982345,1738266640560,-500.0,0.00019178,2]
[350982347,1738266640570,-512.27,0.00019178,2]
[350982348,1738266640580,-500.0,0.00019178,2]
[350982349,1738266640590,-500.0,0.00019178,2]
[350982350,1738266640601,-500.0,0.00019178,2]
[350982351,1738266640611,-500.0,0.00019178,2]
[350982352,1738266640621,-500.0,0.00019178,2]
[350982353,1738266640630,-500.0,0.00019178,2]
[350982354,1738266640640,-500.0,0.00019178,2]
[350982355,1738266640650,-500.0,0.00019178,2]
[350982356,1738266640660,-550.81466653,0.00019178,2]
[350982357,1738266640669,-500.0,0.00019178,2]
[350982358,1738266640679,-500.0,0.00019178,2]
[350982359,1738266640688,-500.0,0.00019178,2]
[350982360,1738266640698,-500.0,0.00019178,2]
[350982361,1738266640707,-500.0,0.00019178,2]
[350982363,1738266640717,-500.0,0.00019178,2]
[350982365,1738266640727,-500.0,0.00019178,2]
[350982367,1738266640737,-500.0,0.00019178,2]
[350982369,1738266640746,-500.0,0.00019178,2]
[350982371,1738266640756,-500.0,0.00019178,2]
[350982373,1738266640766,-500.0,0.00019178,2]
[350982376,1738266640777,-500.0,0.00019178,2]
[350982378,1738266640787,-500.0,0.00019178,2]
[350982380,1738266640798,-500.0,0.00019178,2]
[350982382,1738266640808,-500.0,0.00019178,2]
[350982384,1738266640817,-500.0,0.00019178,2]
[350982386,1738266640827,-500.0,0.00019178,2]
[350982388,1738266640837,-500.0,0.00019178,2]
[350982390,1738266640847,-500.0,0.00019178,2]
[350982392,1738266640857,-500.0,0.00019178,2]
[350982394,1738266640868,-505.82029102,0.00019178,2]
[350982397,1738266640878,-773.44,0.00019178,2]
[350982399,1738266640888,-500.0,0.00019178,2]
[350982401,1738266640898,-500.0,0.00019178,2]
[350982403,1738266640912,-660.63,0.00019178,2]
[350982405,1738266640922,-500.0,0.00019178,2]
[350982407,1738266640932,-500.0,0.00019178,2]
[350982409,1738266640943,-500.0,0.00019178,2]
[350982412,1738266640953,-500.0,0.00019178,2]
[350982414,1738266640964,-500.0,0.00019178,2]
[350982416,1738266640974,-500.0,0.00019178,2]
[350982418,1738266640984,-500.0,0.00019178,2]
[350982420,1738266640994,-500.0,0.00019178,2]
[350982422,1738266641004,-500.0,0.00019178,2]
[350982424,1738266641014,-500.0,0.00019178,2]
[350982426,1738266641024,-368.74478147,0.00019178,2]
[350982428,1738266641033,-500.0,0.00019178,2]
[350982430,1738266641043,-500.0,0.00019178,2]
[350982432,1738266641053,-557.07,0.00019178,2]
[350982434,1738266641063,-243.01087499,0.00019178,2]
[350982436,1738266641074,-500.0,0.00019178,2]
[350982439,1738266641084,-500.0,0.00019178,2]
[350982441,1738266641093,-721.59,0.00019178,2]
[350982443,1738266641104,-500.0,0.00019178,2]
[350982445,1738266641114,-500.0,0.00019178,2]
[350982447,1738266641124,-500.0,0.00019178,2]
[350982449,1738266641134,-1000.0,0.00019178,2]
[350982451,1738266641144,-500.0,0.00019178,2]
[350982453,1738266641154,-500.0,0.00019178,2]
[350982455,1738266641163,-723.46,0.00019178,2]
[350982457,1738266641173,-500.0,0.00019178,2]
[350982459,1738266641182,-500.0,0.00019178,2]
[350982461,1738266641192,-500.0,0.00019178,2]
[350982463,1738266641203,-500.0,0.00019178,2]
[350982465,1738266641216,-500.0,0.00019178,2]
[350982467,1738266641226,-500.0,0.00019178,2]
[350982469,1738266641237,-500.0,0.00019178,2]
[350982471,1738266641246,-500.0,0.00019178,2]
[350982473,1738266641256,-500.0,0.00019178,2]
[350982475,1738266641267,-353.44521471,0.00019178,2]
[350982477,1738266641277,-779.71,0.00019178,2]
[350982480,1738266641287,-500.0,0.00019178,2]
[350982482,1738266641298,-500.0,0.00019178,2]
[350982484,1738266641307,-500.0,0.00019178,2]
[350982486,1738266641317,-500.0,0.00019178,2]
[350982488,1738266641327,-500.0,0.00019178,2]
[350982490,1738266641341,-500.0,0.00019178,2]
[350982492,1738266641352,-500.0,0.00019178,2]
[350982494,1738266641363,-681.3,0.00019178,2]
[350982496,1738266641373,-500.0,0.00019178,2]
[350982498,1738266641386,-500.0,0.00019178,2]
[350982501,1738266641396,-500.0,0.00019178,2]
[350982503,1738266641406,-500.0,0.00019178,2]
[350982505,1738266641417,-555.6,0.00019178,2]
[350982508,1738266641439,-680.88,0.00019178,2]
[350982510,1738266641450,-500.0,0.00019178,2]
[350982512,1738266641460,-500.0,0.00019178,2]
[350982514,1738266641469,-500.0,0.00019178,2]
[350982516,1738266641479,-500.0,0.00019178,2]
[350982519,1738266641490,-500.0,0.00019178,2]
[350982521,1738266641500,-1027.44,0.00019178,2]
[350982523,1738266641510,-500.0,0.00019178,2]
[350982525,1738266641520,-500.0,0.00019178,2]
[350982527,1738266641530,-500.0,0.00019178,2]
[350982529,1738266641541,-500.0,0.00019178,2]
[350982531,1738266641552,-500.0,0.00019178,2]
[350982532,1738266641562,-500.0,0.00019178,2]
[350982533,1738266641572,-500.0,0.00019178,2]
[350982534,1738266641583,-500.0,0.00019178,2]
[350982535,1738266641593,-500.0,0.00019178,2]
[350982537,1738266641603,-500.0,0.00019178,2]
[350982539,1738266641613,-500.0,0.00019178,2]
[350982541,1738266641624,-500.0,0.00019178,2]
[350982543,1738266641634,-500.0,0.00019178,2]
[350982545,1738266641643,-500.0,0.00019178,2]
[350982547,1738266641653,-500.0,0.00019178,2]
[350982549,1738266641663,-500.0,0.00019178,2]
[350982551,1738266641673,-2688.13,0.00019178,2]
[350982553,1738266641683,-500.0,0.00019178,2]
[350982555,1738266641694,-1186.58,0.00019178,2]
[350982557,1738266641703,-182.88307019,0.00019178,2]
[350982559,1738266641713,-2057.41,0.00019178,2]
[350982562,1738266641724,-500.0,0.00019178,2]
[350982564,1738266641735,-500.0,0.00019178,2]
[350982566,1738266641745,-500.0,0.00019178,2]
[350982568,1738266641755,-500.0,0.00019178,2]
[350982570,1738266641765,-500.81937371,0.00019178,2]
[350982572,1738266641776,-501.06697621,0.00019178,2]
[350982574,1738266641786,-500.0,0.00019178,2]
[350982577,1738266641799,-500.0,0.00019178,2]
[350982579,1738266641810,-500.0,0.00019178,2]
[350982581,1738266641820,-5000.0,0.00019178,2]
[350982583,1738266641830,-515.86470762,0.00019178,2]
[350982585,1738266641840,-500.0,0.00019178,2]
[350982587,1738266641849,-1074.16,0.00019178,2]
[350982589,1738266641859,-500.0,0.00019178,2]
[350982591,1738266641870,-500.0,0.00019178,2]
[350982593,1738266641880,-521.65,0.00019178,2]
[350982595,1738266641890,-500.0,0.00019178,2]
[350982597,1738266641901,-1276.26,0.00019178,2]
[350982599,1738266641911,-2640.8,0.00019178,2]
[350982602,1738266641926,-500.0,0.00019178,2]
[350982604,1738266641936,-1126.53,0.00019178,2]
[350982606,1738266641947,-500.0,0.00019178,2]
[350982608,1738266641957,-539.42152911,0.00019178,2]
[350982611,1738266641967,-896.71,0.00019178,2]
[350982613,1738266641978,-500.0,0.00019178,2]
[350982615,1738266641988,-936.06,0.00019178,2]
[350982617,1738266641997,-2263.21,0.00019178,2]
[350982619,1738266642008,-500.0,0.00019178,2]
[350982621,1738266642018,-536.75,0.00019178,2]
[350982623,1738266642029,-500.0,0.00019178,2]
[350982625,1738266642039,-500.0,0.00019178,2]
[350982627,1738266642049,-482.25385557,0.00019178,2]
[350982629,1738266642059,-500.0,0.00019178,2]
[350982632,1738266642069,-500.0,0.00019178,2]
[350982634,1738266642079,-500.0,0.00019178,2]
[350982636,1738266642090,-600.83,0.00019178,2]
[350982638,1738266642100,-500.0,0.00019178,2]
[350982640,1738266642110,-500.0,0.00019178,2]
[350982642,1738266642121,-1034.53,0.00019178,2]
[350982644,1738266642131,-500.0,0.00019178,2]
[350982646,1738266642142,-500.0,0.00019178,2]
[350982648,1738266642152,-512.00172702,0.00019178,2]
[350982651,1738266642163,-500.0,0.00019178,2]
[350982653,1738266642173,-1377.12,0.00019178,2]
[350982655,1738266642183,-500.0,0.00019178,2]
[350982657,1738266642194,-1547.29,0.00019178,2]
[350982659,1738266642206,-500.0,0.00019178,2]
[350982661,1738266642215,-500.0,0.00019178,2]
[350982663,1738266642225,-500.0,0.00019178,2]
[350982665,1738266642235,-500.0,0.00019178,2]
[350982667,1738266642245,-2085.43,0.00019178,2]
[350982669,1738266642256,-2388.09,0.00019178,2]
[350982671,1738266642266,-500.0,0.00019178,2]
[350982673,1738266642276,-505.06664364,0.00019178,2]
[350982675,1738266642287,-500.0,0.00019178,2]
[350982677,1738266642297,-500.0,0.00019178,2]
[350982680,1738266642307,-766.04,0.00019178,2]
[350982682,1738266642317,-500.0,0.00019178,2]
[350982684,1738266642327,-2148.9,0.00019178,2]
[350982686,1738266642342,-947.28,0.00019178,2]
[350982688,1738266642352,-500.0,0.00019178,2]
[350982690,1738266642361,-500.0,0.00019178,2]
[350982692,1738266642372,-500.0,0.00019178,2]
[350982694,1738266642383,-297.67993081,0.00019178,2]
[350982696,1738266642392,-500.0,0.00019178,2]
[350982697,1738266642402,-665.99,0.00019178,2]
[350982698,1738266642413,-500.0,0.00019178,2]
[350982699,1738266642425,-500.0,0.00019178,2]
[350982700,1738266642435,-500.0,0.00019178,2]
[350982701,1738266642448,-500.0,0.00019178,2]
[350982702,1738266642458,-509.63,0.00019178,2]
[350982703,1738266642469,-500.0,0.00019178,2]
[350982704,1738266642480,-500.0,0.00019178,2]
[350982705,1738266642490,-500.0,0.00019178,2]
[350982706,1738266642501,-500.0,0.00019178,2]
[350982707,1738266642511,-500.0,0.00019178,2]
[350982708,1738266642531,-4154.5,0.00019178,2]
[350982709,1738266642542,-500.0,0.00019178,2]
[350982710,1738266642553,-964.64,0.00019178,2]
[350982711,1738266642565,-500.0,0.00019178,2]
[350982712,1738266642576,-420.47028568,0.00019178,2]
[350982713,1738266642587,-724.1,0.00019178,2]
[350982714,1738266642599,-500.0,0.00019178,2]
[350982715,1738266642610,-500.0,0.00019178,2]
[350982716,1738266642622,-428.82225105,0.00019178,2]
[350982717,1738266642632,-500.0,0.00019178,2]
[350982718,1738266642642,-500.0,0.00019178,2]
[350982719,1738266642652,-500.0,0.00019178,2]
[350982720,1738266642662,-1246.81,0.00019178,2]
[350982721,1738266642672,-500.0,0.00019178,2]
[350982722,1738266642682,-500.0,0.00019178,2]
[350982723,1738266642692,-500.0,0.00019178,2]
[350982724,1738266642705,-1374.92,0.00019178,2]
[350982725,1738266642717,-1377.43,0.00019178,2]
[350982726,1738266642727,-468.65688668,0.00019178,2]
[350982727,1738266642737,-164.95628464,0.00019178,2]
[350982728,1738266642747,-500.0,0.00019178,2]
[350982729,1738266642757,-180.660018,0.00019178,2]
[350982730,1738266642767,-743.1,0.00019178,2]
[350982731,1738266642777,-500.0,0.00019178,2]
[350982732,1738266642787,-500.0,0.00019178,2]
[350982733,1738266642797,-500.0,0.00019178,2]
[350982734,1738266642806,-571.33558419,0.00019178,2]
[350982735,1738266642817,-500.0,0.00019178,2]
[350982736,1738266642826,-1059.83,0.00019178,2]
[350982737,1738266642836,-1130.24,0.00019178,2]
[350982738,1738266642846,-943.55,0.00019178,2]
[350982739,1738266642856,-510.66451266,0.00019178,2]
[350982740,1738266642867,-500.0,0.00019178,2]
[350982741,1738266642877,-500.0,0.00019178,2]
[350982742,1738266642887,-500.0,0.00019178,2]
[350982743,1738266642897,-500.0,0.00019178,2]
[350982744,1738266642906,-500.0,0.00019178,2]
[350982746,1738266642917,-500.0,0.00019178,2]
[350982748,1738266642926,-500.0,0.00019178,2]
[350982750,1738266642936,-500.0,0.00019178,2]
[350982753,1738266642947,-1080.38,0.00019178,2]
[350982755,1738266642958,-1238.9,0.00019178,2]
[350982756,1738266642972,-500.0,0.00019178,2]
[350982757,1738266642983,-500.0,0.00019178,2]
[350982758,1738266642993,-542.39,0.00019178,2]
[350982759,1738266643003,-1294.14,0.00019178,2]
[350982760,1738266643014,-500.0,0.00019178,2]
[350982761,1738266643024,-659.68,0.00019178,2]
[350982762,1738266643034,-1088.74,0.00019178,2]
[350982763,1738266643045,-1533.58,0.00019178,2]
[350982764,1738266643054,-500.0,0.00019178,2]
[350982765,1738266643064,-500.89522163,0.00019178,2]
[350982766,1738266643074,-535.93,0.00019178,2]
[350982767,1738266643083,-500.0,0.00019178,2]
[350982768,1738266643093,-1139.58,0.00019178,2]
[350982769,1738266643102,-563.7,0.00019178,2]
[350982770,1738266643112,-1412.02,0.00019178,2]
[350982771,1738266643123,-2006.12,0.00019178,2]
[350982772,1738266643133,-500.0,0.00019178,2]
[350982773,1738266643143,-500.0,0.00019178,2]
[350982774,1738266643153,-500.0,0.00019178,2]
[350982775,1738266643469,-500.68568285,0.00019178,2]
[350982776,1738266643480,-500.0,0.00019178,2]
[350982777,1738266643490,-500.0,0.00019178,2]
[350982778,1738266643500,-500.0,0.00019178,2]
[350982779,1738266643510,-500.0,0.00019178,2]
[350982780,1738266643519,-1015.98,0.00019178,2]
[350982781,1738266643529,-741.26,0.00019178,2]
[350982782,1738266643538,-500.0,0.00019178,2]
[350982783,1738266643547,-500.0,0.00019178,2]
[350982784,1738266643556,-500.0,0.00019178,2]
[350982785,1738266643565,-549.01,0.00019178,2]
[350982786,1738266643575,-1906.84,0.00019178,2]
[350982787,1738266643584,-517.10326398,0.00019178,2]
[350982788,1738266643593,-902.35,0.00019178,2]
[350982789,1738266643603,-500.0,0.00019178,2]
[350982790,1738266643613,-1204.22,0.00019178,2]
[350982791,1738266643623,-500.0,0.00019178,2]
[350982792,1738266643633,-908.85,0.00019178,2]
[350982793,1738266643642,-500.0,0.00019178,2]
[350982794,1738266643652,-500.0,0.00019178,2]
[350982795,1738266643661,-509.22789042,0.00019178,2]
[350982796,1738266643671,-166.34783432,0.00019178,2]
[350982797,1738266643680,-500.0,0.00019178,2]
[350982798,1738266643689,-741.37,0.00019178,2]
[350982799,1738266643698,-1040.22,0.00019178,2]
[350982800,1738266643707,-500.0,0.00019178,2]
[350982801,1738266643716,-502.93131809,0.00019178,2]
[350982802,1738266643726,-500.0,0.00019178,2]
[350982803,1738266643736,-500.0,0.00019178,2]
[350982804,1738266643745,-500.0,0.00019178,2]
[350982805,1738266643754,-500.0,0.00019178,2]
[350982806,1738266643764,-547.58,0.00019178,2]
[350982807,1738266643773,-500.0,0.00019178,2]
[350982808,1738266643782,-1003.73,0.00019178,2]
[350982809,1738266643791,-689.04,0.00019178,2]
[350982810,1738266643800,-500.0,0.00019178,2]
[350982811,1738266643810,-500.0,0.00019178,2]
[350982812,1738266643820,-1317.43,0.00019178,2]
[350982813,1738266643830,-500.0,0.00019178,2]
[350982814,1738266643839,-1462.52,0.00019178,2]
[350982815,1738266643849,-500.0,0.00019178,2]
[350982816,1738266643858,-582.0945578,0.00019178,2]
[350982817,1738266643868,-1235.08,0.00019178,2]
[350982818,1738266643877,-1197.9,0.00019178,2]
[350982819,1738266643887,-985.01,0.00019178,2]
[350982820,1738266643896,-1623.25,0.00019178,2]
[350982821,1738266643905,-500.0,0.00019178,2]
[350982822,1738266643915,-500.0,0.00019178,2]
[350982823,1738266643924,-500.0,0.00019178,2]
[350982824,1738266643934,-500.0,0.00019178,2]
[350982825,1738266643943,-498.88196179,0.00019178,2]
[350982826,1738266643952,-529.64,0.00019178,2]
[350982827,1738266643963,-1092.12,0.00019178,2]
[350982828,1738266643975,-500.0,0.00019178,2]
[350982829,1738266643984,-500.0,0.00019178,2]
[350982830,1738266643994,-188.794939,0.00019178,2]
[350982831,1738266644003,-500.0,0.00019178,2]
[350982832,1738266644013,-500.0,0.00019178,2]
[350982833,1738266644022,-546.85088019,0.00019178,2]
[350982834,1738266644031,-500.0,0.00019178,2]
[350982835,1738266644041,-511.70451407,0.00019178,2]
[350982836,1738266644053,-500.0,0.00019178,2]
[350982837,1738266644064,-500.0,0.00019178,2]
[350982838,1738266644074,-500.0,0.00019178,2]
[350982839,1738266644084,-1775.58,0.00019178,2]
[350982840,1738266644094,-1034.38,0.00019178,2]
[350982841,1738266644103,-500.0,0.00019178,2]
[350982842,1738266644113,-672.77,0.00019178,2]
[350982843,1738266644123,-628.25,0.00019178,2]
[350982844,1738266644132,-1547.69,0.00019178,2]
[350982845,1738266644142,-500.0,0.00019178,2]
[350982846,1738266644151,-1351.76,0.00019178,2]
[350982847,1738266644161,-2201.75,0.00019178,2]
[350982848,1738266644171,-500.0,0.00019178,2]
[350982849,1738266644180,-500.0,0.00019178,2]
[350982850,1738266644190,-988.41,0.00019178,2]
[350982851,1738266644199,-500.0,0.00019178,2]
[350982852,1738266644209,-1281.29,0.00019178,2]
[350982853,1738266644219,-500.0,0.00019178,2]
[350982854,1738266644228,-1630.61,0.00019178,2]
[350982855,1738266644237,-500.0,0.00019178,2]
[350982856,1738266644246,-500.0,0.00019178,2]
[350982857,1738266644256,-554.51,0.00019178,2]
[350982858,1738266644265,-598.97,0.00019178,2]
[350982859,1738266644274,-1848.43,0.00019178,2]
[350982860,1738266644284,-500.0,0.00019178,2]
[350982861,1738266644294,-1206.12,0.00019178,2]
[350982862,1738266644303,-641.05,0.00019178,2]
[350982863,1738266644313,-1972.56,0.00019178,2]
[350982864,1738266644323,-1103.17,0.00019178,2]
[350982865,1738266644332,-931.61,0.00019178,2]
[350982866,1738266644346,-500.0,0.00019178,2]
[350982867,1738266644355,-500.0,0.00019178,2]
[350982868,1738266644366,-500.0,0.00019178,2]
[350982869,1738266644377,-500.0,0.00019178,2]
[350982870,1738266644387,-500.0,0.00019178,2]
[350982871,1738266644397,-1872.32,0.00019178,2]
[350982872,1738266644407,-500.0,0.00019178,2]
[350982873,1738266644419,-500.0,0.00019178,2]
[350982874,1738266644429,-500.0,0.00019178,2]
[350982875,1738266644438,-500.0,0.00019178,2]
[350982876,1738266644450,-500.0,0.00019178,2]
[350982877,1738266644459,-500.0,0.00019178,2]
[350982878,1738266644470,-572.91,0.00019178,2]
[350982879,1738266644479,-3097.69,0.00019178,2]
[350982880,1738266644490,-500.0,0.00019178,2]
[350982881,1738266644499,-500.0,0.00019178,2]
[350982882,1738266644509,-500.0,0.00019178,2]
[350982883,1738266644519,-500.0,0.00019178,2]
[350982884,1738266644528,-500.0,0.00019178,2]
[350982885,1738266644537,-500.0,0.00019178,2]
[350982886,1738266644547,-500.0,0.00019178,2]
[350982887,1738266644556,-500.0,0.00019178,2]
[350982888,1738266644566,-500.0,0.00019178,2]
[350982889,1738266644575,-215.0,0.00019178,2]
[350982890,1738266644585,-1349.94,0.00019178,2]
[350982891,1738266644594,-500.0,0.00019178,2]
[350982892,1738266644603,-500.0,0.00019178,2]
[350982893,1738266644614,-500.0,0.00019178,2]
[350982894,1738266644624,-699.75,0.00019178,2]
[350982895,1738266644633,-500.0,0.00019178,2]
[350982896,1738266644642,-1249.93,0.00019178,2]
[350982897,1738266644652,-1251.77,0.00019178,2]
[350982898,1738266644661,-974.0,0.00019178,2]
[350982899,1738266644670,-500.0,0.00019178,2]
[350982900,1738266644679,-500.0,0.00019178,2]
[350982901,1738266644688,-500.0,0.00019178,2]
[350982902,1738266644698,-500.0,0.00019178,2]
[350982903,1738266644707,-1131.73,0.00019178,2]
[350982904,1738266644717,-500.0,0.00019178,2]
[350982905,1738266644726,-500.0,0.00019178,2]
[350982906,1738266644735,-500.0,0.00019178,2]
[350982907,1738266644745,-2406.25,0.00019178,2]
[350982908,1738266644754,-1140.85,0.00019178,2]
[350982909,1738266644763,-520.32933026,0.00019178,2]
[350982910,1738266644772,-555.24,0.00019178,2]
[350982911,1738266644782,-629.96,0.00019178,2]
[350982912,1738266644791,-500.0,0.00019178,2]
[350982913,1738266644800,-500.0,0.00019178,2]
[350982914,1738266644810,-1020.52,0.00019178,2]
[350982915,1738266644820,-500.0,0.00019178,2]
[350982916,1738266644829,-1177.72,0.00019178,2]
[350982917,1738266644839,-462.10094892,0.00019178,2]
[350982918,1738266644848,-712.69,0.00019178,2]
[350982919,1738266644857,-500.0,0.00019178,2]
[350982920,1738266644866,-1057.1,0.00019178,2]
[350982921,1738266644876,-500.0,0.00019178,2]
[350982922,1738266644885,-500.0,0.00019178,2]
[350982923,1738266644895,-1463.42,0.00019178,2]
[350982924,1738266644905,-500.0,0.00019178,2]
[350982925,1738266644914,-500.0,0.00019178,2]
[350982926,1738266644923,-500.0,0.00019178,2]
[350982927,1738266644933,-1316.13,0.00019178,2]
[350982928,1738266644942,-500.0,0.00019178,2]
[350982929,1738266644951,-500.0,0.00019178,2]
[350982930,1738266644961,-500.0,0.00019178,2]
[350982931,1738266644970,-500.0,0.00019178,2]
[350982932,1738266644980,-781.52,0.00019178,2]
[350982933,1738266644989,-2103.72,0.00019178,2]
[350982934,1738266644999,-742.26,0.00019178,2]
[350982935,1738266645009,-500.0,0.00019178,2]
[350982936,1738266645020,-500.0,0.00019178,2]